{"text_format":"1","workbook":"xlsx","n_sheets":1,"sheets":["（別記様式２）申請書確認表"],"not_rendered":{"charts":0,"images":0,"macros":1,"external_links":0,"defined_names":13,"comments":1,"pivot_tables":0},"unopened":[],"bounds":{"document_bytes":16777216,"sheet_cells":100000,"rows_first":2000,"rows_last":500,"rows_between":2000,"halvings":0,"cell_chars":16384,"cell_head_chars":4096},"cells_cut":0,"cells_raw":0,"read":"whole","date_system":"1900"}

{"sheet":"（別記様式２）申請書確認表","index":0,"n_rows":108,"n_cols":16,"rows_kept":108,"cut":false,"hidden":false,"merged":[[26,4,28,4],[70,4,70,9],[61,5,62,5],[26,6,26,7],[27,6,27,7],[29,4,59,4],[29,8,31,8],[35,6,42,6],[43,6,50,6],[51,6,58,6],[36,5,43,5],[2,3,3,3],[10,4,16,5],[22,3,23,3],[23,4,23,9],[8,6,21,6],[2,11,3,11],[2,12,3,12],[2,8,3,8],[2,10,3,10],[24,4,24,9],[2,4,3,7],[2,9,3,9]]}
[null,null,null,null,"（別記様式２）申請書確認表"]
[null,null,null,null,"球磨川ブロック"]
[null,"非選択","提出様式","欠格\n判断\n項目","評 価 項 目",null,null,null,"評価基準","配点","記載例",null,"kisairei","株式会社○○建設","チェック"]
["選択項目シートＤ列とセット","チェック",null,null,null,null,null,null,null,null,null,null,null,"業者コード","評価","加算点"]
[null,null,null,null,"１．参加するための要件"]
[null,null,null,"●","(1)予算決算及び会計令第７０条及び第７１条の規定に該当しない者であること。",null,null,null,null,null,"該当無し","　",null,"選択してください","　"]
[null,null,null,"●","(2)九州地方整備局における右記の工事種別の等級区分の認定を受けていること。",null,null,null,"一般土木 C等級",null,"認定あり",null,null,"選択してください"]
[null,null,null,"●","(3)会社更生法に基づき更生手続開始の申立てがなされている者又は民事再生法に基づき再生手続開始の申立てがなされている者でないこと。",null,null,null,null,null,"該当無し",null,null,"選択してください"]
[null,null,"別記様式2","●","(4)同種工事の施工実績",null,"工事名称・工事概要等","工事名称",null,null,"福岡○○号○○○橋上部工工事"]
[null,null,"別記様式2",null,"同種工事の条件",null,null,"発注機関名",null,null,"○○国道事務所"]
[null,null,"別記様式2",null,"（ア）河川、砂防、道路工事の護岸工（根固工、水制工、捨石工を除く）もしくは掘削または切土工（床堀を除く）の施工実績を有すること。",null,null,"施工場所",null,null,"○○県○○市△△△町"]
[null,null,"別記様式2",null,null,null,null,"対象水系・路線名称等",null,null,"国道○○号"]
[null,null,"別記様式2",null,null,null,null,"最終契約金額（百万円）",null,null,"○○",null,null,"○○"]
[null,null,"別記様式2",null,null,null,null,"工期","平成１８年度以降",null,"令和○年○月○日～令和○年○月○日",null,null,"令和○年○月○日～令和○年○月○日"]
[null,null,"別記様式2","●",null,null,null,"受注形態等","共同企業体の場合、出資比率が20%以上に限る",null,"JV  （出資比率）",null,null,"選択してください"]
[null,null,"別記様式2",null,null,null,null,"CORINS登録の有無  （登録番号）",null,null,"有 （00000000）",null,null,"選択してください"]
[null,null,null,"●",null,null,null,"工事成績評定点","65点以上",null,100,"○",null,null,{"$f":"IF(OR(N17=\"○○\",N17=\"\"),\"\",IF(N17>=65,\"○\",\"×\"))","v":""}]
[null,null,"別記様式2","●",null,null,null,"(例）河川、砂防、道路工事の護岸もしくは掘削または切土工",null,null,"河川工事の掘削",null,null,null,"　"]
[null,null,"別記様式2"]
[null,null,"別記様式2"]
[]
[null,null,"別記様式2"]
[null,null,null,"●","(５)本店、支店又は営業所が一定区域内に所在すること。",null,null,null,null,null,"（本店）：○○県○○市○○"]
[null,null,null,null,"八代河川国道事務所管内（熊本県八代市、人吉市、水俣市、八代郡（氷川町）、葦北郡（芦北町、津奈木町）、球磨郡（錦町、多良木町、湯前町、水上村、相良村、五木村、山江村、球磨村、あさぎり町））に建設業法に基づく主たる営業所（一般競争（指名競争）参加資格審査申請書に記載された本店の住所による。）が所在すること。"]
[null,null,null,"●","(６)警察当局から、暴力団員が実質的に経営を支配する建設業者又はこれに準ずるものとして、国土交通省発注工事等からの排除要請があり、当該状態が継続している者でないこと。",null,null,null,null,null,"該当無し",null,null,"選択してください"]
[null,null,null,null,"２．総合評価の項目"]
["工事実績（企業）",null,null,null,"企業の能力等","工事実績","上記(4)に記載した同種工事の施工実績",null,"より同種性の高い工事の実績あり：Ａ\n同種性の高い工事の実績あり：Ｃ\n同種性が認められる工事の実績あり：Ｅ",3,"より同種性の高い工事","Ａ",{"$f":"IF(AND($J27<>0,L27<>\"\"),$J27*VLOOKUP(L27,指数_3段階,2,0),\"\")","v":3},"選択してください",null,{"$f":"IF(AND($J27<>0,O27<>\"\"),$J27*VLOOKUP(O27,指数_3段階,2,0),\"\")","v":""}]
["工事成績（企業）",null,null,null,null,"工事成績",null,null,"80点以上：ａ   79点以上80点未満：ｂ\n78点以上79点未満：ｃ   77点以上78点未満：ｄ\n76点以上77点未満：ｅ   75点以上76点未満：ｆ\n75点未満：ｇ",3,"○○.○○","ａ",{"$f":"IF(L28=\"\",\"\",$J28*VLOOKUP(L28,指数_7段階,2,0))","v":3},"○○.○○",null,{"$f":"IF(O28=\"\",\"\",$J28*VLOOKUP(O28,指数_7段階,2,0))","v":""}]
[null,null,null,null,null,null,null,"小　　　　　　　計",null,{"$f":"SUMIF($B$27:$B$28,\"\",J27:J28)","v":6},null,null,{"$f":"SUMIF($B$27:$B$28,\"\",M27:M28)","v":6},null,null,{"$f":"IF(N3=0,\"\",ROUND(SUM(P$27:P$28),2))","v":0}]
["災害協定に基づく活動実績1",null,"別記様式6(4)",null,"地域貢献等","災害協定に基づく活動実績","災害協定に基づく活動実績の有無",null,"災害協定に基づいた活動実績あり：Ａ\n八代河川国道事務所との災害協定に基づいた巡視等の実績あり：Ｂ\n直接災害協定の締結あり活動実績なし：Ｃ\n直接災害協定の締結なし：Ｅ",2,"災害協定等に基づいた活動実績あり","Ａ",{"$f":"IF(AND($B30<>\"×\",$J30<>0,L30<>\"\"),$J30*VLOOKUP(L30,指数_4段階,2,0),\"\")","v":2},"選択してください",null,{"$f":"IF(AND($B30<>\"×\",$J30<>0,O30<>\"\"),$J30*VLOOKUP(O30,指数_4段階,2,0),\"\")","v":""}]
[null,null,"別記様式6(4)",null,null,null,"協定名及び相手方",null,null,null,"災害時における応急対策業務に関する基本協定\n○○国道事務所"]
[null,null,"別記様式6(4)",null,null,null,"災害対応の内容",null,null,null,"一般国道○号○○地区災害応急復旧工事\n（H○.○.○～H○.○.○）"]
[null,null,"別記様式6(4)",null,null,null,"令和３年度の災害協定の有無"]
[null,null,"別記様式6(4)",null,null,null,null,"災害協定の有無（直接協定に限る）",null,null,"有",null,null,"選択してください"]
[null,null,"別記様式6(4)",null,null,null,null,"協定名及び相手方",null,null,"災害時における応急対策業務に関する基本協定\n○○国道事務所"]
["維持工事等の実績",null,"別記様式6(4)",null,null,"近隣地域内工事の実績","①工事名称等","工事名称","３件：Ａ   １から２件：Ｃ   なし：Ｅ",2,"○○建設工事","Ａ",{"$f":"IF(AND($B36<>\"×\",$J36<>0,L36<>\"\"),$J36*VLOOKUP(L36,指数_3段階,2,0),\"\")","v":2},null,null,{"$f":"IF(AND($B36<>\"×\",$J36<>0,O36<>\"\"),$J36*VLOOKUP(O36,指数_3段階,2,0),\"\")","v":""}]
[null,null,"別記様式6(4)",null,null,"熊本県八代市、人吉市、芦北町、球磨郡（錦町、多良木町、湯前町、水上村、相良村、五木村、山江村、球磨村、あさぎり町）において過去5ヶ年間（平成２８年度以降）に完成した工事を記載すること。なお、公共工事（建築工事を除く）とし、１．５億円以上とする。",null,"発注機関名",null,null,"△△地方整備局 □□事務所"]
[null,null,"別記様式6(4)",null,null,null,null,"施工場所",null,null,"○○県○○市△△△町"]
[null,null,null,null,null,null,null,"対象水系・路線名称等",null,null,"国道○○号"]
[null,null,null,null,null,null,null,"最終契約金額(百万円)",null,null,"○○"]
[null,null,null,null,null,null,null,"工期",null,null,"令和○年○月○日～令和○年○月○日",null,null,"令和○年○月○日～令和○年○月○日"]
[null,null,null,null,null,null,null,"受注形態等（共同企業体の場合、出資比率が20%以上に限る）",null,null,"単体",null,null,"選択してください"]
[null,null,null,null,null,null,null,"CORINS登録の有無  （登録番号）",null,null,"有 （00000000）",null,null,"選択してください"]
[null,null,null,null,null,null,"②工事名称等","工事名称",null,null,"△△建設工事"]
[null,null,null,null,null,null,null,"発注機関名",null,null,"△△地方整備局 □□事務所"]
[null,null,null,null,null,null,null,"施工場所",null,null,"○○県○○市△△△町"]
[null,null,null,null,null,null,null,"対象水系・路線名称等",null,null,"国道○○号"]
[null,null,null,null,null,null,null,"最終契約金額(百万円)",null,null,"○○"]
[null,null,null,null,null,null,null,"工期",null,null,"令和○年○月○日～令和○年○月○日",null,null,"令和○年○月○日～令和○年○月○日"]
[null,null,null,null,null,null,null,"受注形態等（共同企業体の場合、出資比率が20%以上に限る）",null,null,"単体",null,null,"選択してください"]
[null,null,null,null,null,null,null,"CORINS登録の有無  （登録番号）",null,null,"有 （00000000）",null,null,"選択してください"]
[null,null,null,null,null,null,"③工事名称等","工事名称",null,null,"□□建設工事"]
[null,null,null,null,null,null,null,"発注機関名",null,null,"△△地方整備局 □□事務所"]
[null,null,null,null,null,null,null,"施工場所",null,null,"○○県○○市△△△町"]
[null,null,null,null,null,null,null,"対象水系・路線名称等",null,null,"国道○○号"]
[null,{"$f":"$B$36","v":0},"別記様式6(4)",null,null,null,null,"最終契約金額(百万円)",null,null,"○○"]
[null,0,"別記様式6(4)",null,null,null,null,"工期",null,null,"令和○年○月○日～令和○年○月○日",null,null,"令和○年○月○日～令和○年○月○日"]
[null,0,"別記様式6(4)",null,null,null,null,"受注形態等（共同企業体の場合、出資比率が20%以上に限る）",null,null,"単体",null,null,"選択してください"]
[null,0,"別記様式6(4)",null,null,null,null,"CORINS登録の有無  （登録番号）",null,null,"有 （00000000）",null,null,"選択してください"]
[null,null,null,null,null,null,null,"小　　　　　　　計",null,{"$f":"SUMIF($B$30:$B$59,\"\",J$30:J$59)","v":4},null,null,{"$f":"SUMIF($B$30:$B$59,\"\",M$30:M$59)","v":4},null,null,{"$f":"IF(N3=0,\"\",ROUND(SUM(P$30:P$59),2))","v":0}]
[null,null,"別記様式8",null,"減点","事故及び不誠実な行為に対する評価","措置機関",null,"指名停止：加算点満点の10％",{"$f":"$J$70*-0.1","v":-1},"九地整",null,{"$f":"IF(TYPE(SEARCH(\"指名停止\",K62))=1,$J61,IF(TYPE(SEARCH(\"文書注意\",K62))=1,$J$62,IF(TYPE(SEARCH(\"口頭注意\",K62))=1,$J63,\"\")))","v":-0.25},"選択してください",null,{"$f":"IF(TYPE(SEARCH(\"指名停止\",N62))=1,$J61,IF(TYPE(SEARCH(\"文書注意\",N62))=1,$J$62,IF(TYPE(SEARCH(\"口頭注意\",N62))=1,$J63,\"\")))","v":""}]
[null,null,"別記様式8",null,null,"「指名停止」と「文書注意」の両方がある場合は、「指名停止」を記載すること","措置内容",null,"文書注意：加算点満点の5％",{"$f":"$J$70*-0.05","v":-0.5},"口頭注意"]
[null,null,"別記様式8",null,null,null,"措置対象期間（文書注意は通知日）",null,"口頭注意：加算点満点の2.5％",{"$f":"$J$70*-0.025","v":-0.25},"令和○年○月○日～令和○年○月○日"]
[null,null,null,null,"３．総合評価　加算点合計"]
[null,{"$f":"IF(#REF!=\"特別簡易型\",\"×\",\"\")","v":{"$error":"#REF!"}},null,"●",{"$f":"IF(#REF!=\"Ⅰ型\",\"①施工計画\",\"①―\")","v":{"$error":"#REF!"}},null,null,null,null,"―",null,null,"―",null,null,"―"]
[null,null,null,null,"②配置予定技術者の能力等",null,null,null,null,"―",null,null,"―",null,null,"―"]
[null,null,null,null,"企業の能力等",null,null,null,null,{"$f":"J$29","v":6},null,null,{"$f":"M$29","v":6},null,null,{"$f":"P$29","v":0}]
[null,null,null,null,"地域貢献等",null,null,null,null,{"$f":"J$60","v":4},null,null,{"$f":"M$60","v":4},null,null,{"$f":"P$60","v":0}]
[null,null,null,null,"事故及び不誠実な行為に対する評価",null,null,null,null,null,null,null,{"$f":"M$61","v":-0.25},null,null,{"$f":"P$61","v":""}]
[null,null,null,null,null,null,null,"加算点合計",null,{"$f":"SUM(J$67:J$69)","v":10},null,null,{"$f":"SUM(M$67:M$69)","v":9.75},null,null,{"$f":"SUM(P$67:P$69)","v":0}]
[null,null,null,null,"備　　　　　考",null,null,null,null,null,null,null,{"$f":"IF(M65=\"参加資格無し\",\"参加資格無し\",\"\")","v":""},null,null,{"$f":"IF(P65=\"参加資格無し\",\"参加資格無し\",\"\")","v":""}]
[]
[]
[null,null,null,null,"評価基準"]
[null,null,null,null,"7段階（工事成績）"]
[null,null,null,null,"ａ",1,0,"ｇ"]
[null,null,null,null,"ｂ",0.83333333333333337,70,"ｆ"]
[null,null,null,null,"ｃ",0.66666666666666663,72,"ｅ"]
[null,null,null,null,"ｄ",0.5,74,"ｄ"]
[null,null,null,null,"ｅ",0.33333333333333331,76,"ｃ"]
[null,null,null,null,"ｆ",0.16666666666666666,78,"ｂ"]
[null,null,null,null,"ｇ",0,80,"ａ"]
[]
[null,null,null,null,"5段階"]
[null,null,null,null,"Ａ",1]
[null,null,null,null,"Ｂ",0.75]
[null,null,null,null,"Ｃ",0.5]
[null,null,null,null,"Ｄ",0.25]
[null,null,null,null,"Ｅ",0]
[]
[null,null,null,null,"4段階"]
[null,null,null,null,"Ａ",1]
[null,null,null,null,"Ｂ",0.75]
[null,null,null,null,"Ｃ",0.5]
[null,null,null,null,"Ｅ",0]
[]
[null,null,null,null,"3段階（簡易な施工計画）"]
[null,null,null,null,"Ａ",1]
[null,null,null,null,"Ｃ",0.5]
[null,null,null,null,"Ｅ",0]
[]
[null,null,null,null,"2段階"]
[null,null,null,null,"Ａ",1]
[null,null,null,null,"Ｅ",0]
[]
[null,null,null,null,"減点"]
[null,null,null,null,"指名停止",0.1]
[null,null,null,null,"文書注意",0.05]